fUSD/lending_fUSD_20250320
["ID","MTS","AMOUNT","RATE_DAILY","PERIOD"]
[356437282,1742451045837,-500.0,0.00028971,2]
[356437283,1742451045847,-92806.56500192,0.00029026,2]
[356437284,1742451045856,-151.0,0.00029026,7]
[356437285,1742451045866,-151.0,0.00029026,7]
[356437286,1742451045876,-500.0,0.00029026,2]
[356437287,1742451045886,-500.0,0.00029026,2]
[356437288,1742451045895,-317.141092,0.00029026,7]
[356437289,1742451045905,-317.141092,0.00029026,7]
[356437290,1742451045914,-151.0,0.00029026,7]
[356437291,1742451045924,-151.0,0.00029026,7]
[356437292,1742451045933,-151.0,0.00029026,7]
[356437293,1742451045943,-500.0,0.00029026,2]
[356437294,1742451045952,-151.0,0.00029026,7]
[356437295,1742451045961,-500.0,0.00029026,2]
[356437296,1742451045971,-151.0,0.00029026,7]
[356437297,1742451045981,-2319.03,0.00029026,2]
[356437298,1742451045990,-151.0,0.00029026,7]
[356437299,1742451046000,-151.52848,0.00029026,7]
[356437300,1742451046015,-151.0,0.00029026,7]
[356437301,1742451046024,-151.0,0.00029027,7]
[356437302,1742451046034,-151.0,0.00029027,7]
[356437303,1742451046043,-151.0,0.00029027,7]
[356437304,1742451046053,-151.0,0.00029027,7]
[356437305,1742451046063,-151.0,0.00029027,7]
[356437306,1742451046072,-151.0,0.00029027,7]
[356437307,1742451046082,-211.983952,0.00029027,7]
[356437308,1742451046092,-151.0,0.00029027,7]
[356437309,1742451046102,-151.0,0.00029027,7]
[356437310,1742451046111,-151.0,0.00029027,7]
[356437311,1742451046121,-151.0,0.00029027,7]
[356437312,1742451046131,-151.0,0.00029027,7]
[356437313,1742451046141,-151.0,0.00029027,7]
[356437314,1742451046151,-167.314645,0.00029027,7]
[356437315,1742451046160,-167.314645,0.00029027,7]
[356437316,1742451046169,-151.0,0.00029027,7]
[356437317,1742451046179,-995.34,0.00029033,2]
[356437318,1742451046188,-150.0,0.00029048,7]
[356437319,1742451046198,-151.0,0.00029072,7]
[356437320,1742451046207,-151.0,0.00029072,7]
[356437321,1742451046216,-157.90733,0.00029072,7]
[356437322,1742451046226,-157.90733,0.00029072,7]
[356437323,1742451046235,-151.0,0.00029072,7]
[356437324,1742451046245,-222.266949,0.00029072,7]
[356437325,1742451046255,-222.266949,0.00029072,7]
[356437326,1742451046264,-385.716645,0.00029072,7]
[356437327,1742451046274,-385.716645,0.00029072,7]
[356437328,1742451046283,-151.0,0.00029072,7]
[356437329,1742451046293,-151.0,0.00029072,7]
[356437330,1742451046302,-288.183613,0.00029072,7]
[356437331,1742451046311,-151.0,0.00029072,7]
[356437332,1742451046320,-288.183613,0.00029072,7]
[356437333,1742451046330,-509.98420144,0.00029073,5]
[356437334,1742451046339,-500.0,0.0002908,2]
[356437335,1742451046348,-584.51976322,0.0002908,2]
[356437336,1742451046357,-500.0,0.0002908,2]
[356437337,1742451046367,-400.25680397,0.0002908,2]
[356437338,1742451046376,-500.0,0.0002908,2]
[356437339,1742451046386,-500.0,0.0002908,2]
[356437340,1742451046395,-500.0,0.0002908,2]
[356437341,1742451046404,-500.0,0.0002908,2]
[356437342,1742451046413,-500.0,0.0002908,2]
[356437343,1742451046423,-500.0,0.0002908,2]
[356437344,1742451046432,-500.0,0.0002908,2]
[356437345,1742451046441,-316.45523215,0.0002908,2]
[356437346,1742451046450,-500.0,0.0002908,2]
[356437347,1742451046459,-500.0,0.0002908,2]
[356437348,1742451046469,-500.0,0.0002908,2]
[356437349,1742451046483,-500.0,0.0002908,2]
[356437350,1742451046492,-15680.97764188,0.0002908,2]
[356437351,1742451046596,-520.45800274,0.0002908,2]
[356437352,1742451046611,-500.0,0.00029026,2]
[356437353,1742451046620,-1199.99188854,0.0002908,2]
[356437354,1742451046631,-2292.72086,0.0002908,2]
[356437355,1742451100911,-202.45,0.00022032,7]
[356437363,1742451919491,867.30233037,9e-05,2]
[356437365,1742451935527,2350.08048251,8e-05,2]
[356437366,1742451935550,3217.38281288,8e-05,2]
[356437367,1742451935574,3217.38281288,8e-05,2]
[356437368,1742451935596,3217.38281288,8e-05,2]
[356437369,1742451935617,439.38567756,8e-05,2]
[356437373,1742452032166,205.0,9.8e-05,2]
[356437374,1742452050756,-168.8834848,0.0002,29]
[356437375,1742452074442,2572.99713532,0.0001,2]
[356437376,1742452074464,3217.38281288,0.0001,2]
[356437377,1742452074488,3217.38281288,0.0001,2]
[356437378,1742452074510,3217.38281288,0.0001,2]
[356437379,1742452074534,3217.38281288,0.0001,2]
[356437380,1742452074556,3217.38281288,0.0001,2]
[356437381,1742452074583,1000.0,0.0001,2]
[356437382,1742452074605,1000.0,0.0001,2]
[356437383,1742452074627,1000.0,0.0001,2]
[356437384,1742452074817,1000.0,0.0001,2]
[356437385,1742452074840,1000.0,0.0001,2]
[356437386,1742452074862,1000.0,0.0001,2]
[356437387,1742452074893,79790.17,0.0001,2]
[356437388,1742452074916,32450.0,0.0001,2]
[356437389,1742452077089,-188.4051037,0.0001,2]
[356437390,1742452082894,-150.0,9.5e-05,2]
[356437392,1742452107409,-59.53383703,9.5e-05,2]
[356437393,1742452107432,-142.91616297,9.828e-05,2]
[356437395,1742452142785,-202.45,9.828e-05,2]
[356437396,1742452148689,-150.0,9.828e-05,2]
[356437402,1742452201082,-202.45,9.828e-05,2]
[356437414,1742452231934,-1629.81460274,9.828e-05,2]
[356437415,1742452231944,-150.0,9.9e-05,2]
[356437416,1742452231953,-502.08937132,9.973e-05,2]
[356437417,1742452231963,-300.0,9.999e-05,2]
[356437418,1742452231972,-150.0,9.999e-05,2]
[356437419,1742452231981,-152.67997133,9.999e-05,2]
[356437420,1742452231991,-2233.41605452,0.0001,2]
[356437421,1742452232002,-1569.27683,0.0001,2]
[356437422,1742452232013,-25430.0,0.0001,2]
[356437423,1742452232024,-6099.9999999,0.0001,2]
[356437424,1742452232036,-5880.0,0.0001,2]
[356437425,1742452232047,-3550.000005,0.0001,2]
[356437426,1742452232058,-1300.0,0.0001,2]
[356437427,1742452232069,-471.0656486,0.0001,2]
[356437428,1742452232144,-170390.36765173,0.0001,2]
[356437429,1742452232154,-150.53602344,0.0001,2]
[356437430,1742452232164,-215.29389359,0.0001,2]
[356437431,1742452232174,-150.0,0.0001016,2]
[356437432,1742452232183,-350.0,0.00010811,2]
[356437433,1742452232193,-150.0,0.00010811,2]
[356437434,1742452232202,-150.0,0.00010999,2]
[356437435,1742452232211,-300.0,0.00010999,2]
[356437436,1742452232220,-150.0,0.00010999,2]
[356437437,1742452232230,-150.0,0.00010999,2]
[356437438,1742452232239,-250.86919656,0.00013759,2]
[356437439,1742452232249,-16260.1165152,0.0002,29]
[356437440,1742452232258,-1226.39529142,0.0002,10]
[356437441,1742452232267,-1313.0,0.00022,5]
[356437442,1742452232277,-8947.84864669,0.00022,5]
[356437443,1742452232288,-1212.9519,0.00024082,10]
[356437444,1742452232297,-500.0,0.00024658,2]
[356437445,1742452232306,-500.0,0.00024658,2]
[356437446,1742452232315,-500.0,0.00024658,2]
[356437447,1742452232325,-500.0,0.00024658,2]
[356437448,1742452232334,-500.0,0.00024658,2]
[356437449,1742452232344,-500.0,0.00024658,2]
[356437450,1742452232353,-500.0,0.00024658,2]
[356437451,1742452232362,-500.0,0.00024658,2]
[356437452,1742452232372,-545.38176616,0.00024658,2]
[356437454,1742452232381,-500.0,0.00024658,2]
[356437456,1742452232390,-500.0,0.00024658,2]
[356437458,1742452232400,-450.0,0.00024658,2]
[356437460,1742452232410,-240.84,0.00025804,2]
[356437462,1742452232419,-978.107,0.00026746,2]
[356437464,1742452232429,-150.0,0.00026945,7]
[356437466,1742452232442,-1000.0,0.00026978,2]
[356437468,1742452232452,-300.0,0.00026978,2]
[356437470,1742452232461,-725.35,0.0002709,2]
[356437472,1742452232471,-23900.0,0.00027136,2]
[356437474,1742452232481,-294.77,0.00027349,120]
[356437476,1742452232490,-311.57,0.00027386,2]
[356437478,1742452232500,-150.99,0.00027386,2]
[356437480,1742452232509,-1500.0,0.00027656,2]
[356437483,1742452232519,-4499.45,0.00027656,20]
[356437486,1742452232528,-150.67,0.00027691,2]
[356437489,1742452232538,-227.91,0.0002779,2]
[356437491,1742452232548,-150.67,0.00027806,2]
[356437493,1742452232557,-150.67,0.00027922,2]
[356437495,1742452232565,-170.51,0.00028006,2]
[356437497,1742452232574,-150.67,0.00028037,2]
[356437499,1742452232584,-1000.0,0.00028068,2]
[356437501,1742452232593,-1000.0,0.00028068,2]
[356437503,1742452232604,-1000.0,0.00028068,2]
[356437505,1742452232613,-1000.0,0.00028068,2]
[356437507,1742452232622,-1016.0,0.00028068,2]
[356437509,1742452232631,-240.84,0.00028068,2]
[356437511,1742452232641,-150.67,0.00028152,2]
[356437513,1742452232650,-380.5309527,0.00028207,4]
[356437515,1742452232659,-173.63,0.00028236,2]
[356437517,1742452232669,-150.67,0.00028268,2]
[356437519,1742452232678,-150.67,0.00028383,2]
[356437521,1742452232687,-445.51680918,0.00028473,5]
[356437523,1742452232696,-500.38025768,0.00028473,5]
[356437525,1742452232705,-150.0,0.00028493,7]
[356437527,1742452232715,-150.0,0.00028493,7]
[356437529,1742452232724,-150.0,0.00028493,7]
[356437531,1742452232734,-150.67,0.00028499,2]
[356437533,1742452232743,-12788.86345344,0.00028499,2]
[356437535,1742452232752,-803.501,0.00028499,20]
[356437537,1742452232762,-500.0,0.00028499,2]
[356437538,1742452232771,-207.50670512,0.00028499,2]
[356437539,1742452232780,-500.0,0.00028499,2]
[356437540,1742452232790,-307.77657599,0.00028499,2]
[356437541,1742452232799,-500.0,0.00028499,2]
[356437542,1742452232809,-500.0,0.00028499,2]
[356437543,1742452232818,-500.0,0.00028499,2]
[356437544,1742452232827,-500.0,0.00028499,2]
[356437545,1742452232837,-500.0,0.00028499,2]
[356437546,1742452232846,-500.0,0.00028499,2]
[356437547,1742452232855,-500.0,0.00028499,2]
[356437548,1742452232864,-500.0,0.00028499,2]
[356437549,1742452232874,-528.53594913,0.00028499,2]
[356437550,1742452232883,-500.0,0.00028499,2]
[356437551,1742452232893,-97723.0,0.00028499,2]
[356437552,1742452232903,-500.0,0.00028499,2]
[356437553,1742452232913,-500.0,0.00028499,2]
[356437554,1742452232922,-500.0,0.00028499,2]
[356437555,1742452232931,-1835.9,0.00028499,2]
[356437556,1742452233089,-500.0,0.00028499,2]
[356437557,1742452233099,-159.35901137,0.000285,12]
[356437558,1742452233109,-36923.45165466,0.000285,12]
[356437559,1742452233119,-177.1358594,0.000285,120]
[356437560,1742452233128,-500.0,0.000285,7]
[356437561,1742452233138,-500.0,0.000285,7]
[356437562,1742452233148,-507.06,0.000285,7]
[356437563,1742452233158,-1342996.76550518,0.000285,2]
[356437576,1742452238043,-205.27581378,0.000241,3]
[356437577,1742452238052,-205.27581378,0.000241,3]
[356437578,1742452238061,-205.27581378,0.000241,3]
[356437579,1742452238070,-205.27581378,0.000241,3]
[356437580,1742452238079,-205.27581378,0.000241,3]
[356437581,1742452238088,-424.0849665,0.00028207,4]
[356437582,1742452238097,-500.0,0.00028499,2]
[356437583,1742452238106,-50812.76093049,0.000285,2]
[356437584,1742452238118,-11153.4344839,0.000285,2]
[356437613,1742452240296,-205.27581378,0.000241,3]
[356437614,1742452240306,-205.27581378,0.000241,3]
[356437615,1742452240316,-205.27581378,0.0002525,4]
[356437616,1742452240326,-205.27581378,0.000273,4]
[356437617,1742452240335,-1333.88602152,0.000285,2]
[356437618,1742452240347,-463.72725999,0.000285,2]
[356437619,1742452240358,-306.94443232,0.000285,2]
[356437620,1742452240516,-10667.07648974,0.000285,2]
[356437621,1742452240527,-381.28266465,0.000285,2]
[356437651,1742452242936,-370.60876754,0.000285,2]
[356437654,1742452242953,-3000.00041975,0.000285,2]
[356437657,1742452242970,-9888.15203673,0.000285,2]
[356437659,1742452242981,-13167.52550743,0.000285,2]
[356437661,1742452242992,-17238.21294153,0.000285,2]
[356437670,1742452243073,-54496.5941594,0.000285,2]
[356437676,1742452243158,-254.77483224,0.000285,2]
[356437684,1742452243219,-11535.17120398,0.000285,2]
[356437762,1742452243980,-2153.375,0.000285,2]
[356437765,1742452243991,-477.54241384,0.000285,2]
[356437944,1742452245904,-1220.31603624,0.000285,2]
[356437947,1742452245927,-1438.43008209,0.000285,2]
[356437951,1742452245955,-12930.45981294,0.000285,2]
[356437962,1742452246062,-8882.10824164,0.000285,2]
[356437965,1742452246074,-322.8916,0.000285,2]
[356437967,1742452246086,-442.77902649,0.000285,2]
[356437985,1742452246251,-302.2518415,0.000285,2]
[356437987,1742452246263,-8201.5,0.000285,2]
[356438067,1742453432355,-250.0,0.00021,2]
[356438069,1742453432365,-253.4735659,0.00021966,2]
[356438075,1742453432418,-96.5264341,0.00021966,2]
[356438077,1742453432428,-350.0,0.000231,2]
[356438080,1742453432437,-350.0,0.000231,2]
[356438083,1742453432446,-166.507876,0.00024108,5]
[356438085,1742453432456,-2354.3348995,0.000243,2]
[356438087,1742453432465,-217.77360996,0.00024789,2]
[356438089,1742453432474,-150.0,0.00024862,2]
[356438091,1742453432483,-216.75,0.00024889,2]
[356438093,1742453432493,-1000.0,0.00025824,2]
[356438095,1742453432503,-200.0,0.00026175,2]
[356438097,1742453432512,-541.95,0.000263,120]
[356438099,1742453432521,-150.0,0.00026568,7]
[356438100,1742453432532,-2000.0,0.0002665,120]
[356438101,1742453432551,-300.0,0.00026779,2]
[356438102,1742453432561,-6183.88213372,0.0002678,2]
[356438161,1742453438180,-150.99,0.00026175,2]
[356438162,1742453438190,-455.4817904,0.0002678,2]
[356438163,1742453438202,-17260.63607588,0.0002678,2]
[356438164,1742453438212,-257.29,0.00026849,2]
[356438165,1742453438221,-151.7112,0.00026864,2]
[356438166,1742453438231,-205.27581378,0.000269,4]
[356438167,1742453438241,-593.97,0.00026955,2]
[356438168,1742453438250,-299.99,0.00026955,12]
[356438169,1742453438260,-183.03,0.00026964,2]
[356438170,1742453438269,-1500.0,0.00026981,2]
[356438171,1742453438279,-593.97,0.00027026,2]
[356438172,1742453438289,-681.87,0.00027041,2]
[356438173,1742453438299,-593.97,0.00027097,2]
[356438174,1742453438309,-584.501,0.00027097,2]
[356438175,1742453438319,-584.501,0.00027097,2]
[356438176,1742453438328,-584.501,0.00027097,2]
[356438177,1742453438339,-584.501,0.00027097,2]
[356438178,1742453438348,-584.501,0.00027097,2]
[356438179,1742453438358,-584.501,0.00027097,2]
[356438180,1742453438367,-584.501,0.00027097,2]
[356438181,1742453438377,-584.501,0.00027097,2]
[356438182,1742453438387,-584.501,0.00027097,2]
[356438183,1742453438397,-584.501,0.00027097,2]
[356438184,1742453438408,-150.0,0.00027152,2]
[356438185,1742453438419,-216.75,0.00027153,2]
[356438186,1742453438429,-388.98867749,0.00027168,2]
[356438187,1742453438441,-204.98132251,0.00027168,2]
[356438188,1742453438451,-593.97,0.00027239,2]
[356438189,1742453438460,-227.91,0.00027274,2]
[356438190,1742453438470,-494.44436984,0.0002731,2]
[356438191,1742453438482,-99.52563016,0.0002731,2]
[356438192,1742453438492,-150.0,0.00027348,2]
[356438193,1742453438502,-391.64512515,0.0002738,2]
[356438194,1742453438514,-202.32487485,0.0002738,2]
[356438195,1742453438524,-500.0,0.00027397,2]
[356438196,1742453438535,-1424.21,0.00027397,2]
[356438197,1742453438546,-593.97,0.00027451,2]
[356438198,1742453438555,-518.64569258,0.00027452,2]
[356438199,1742453438566,-1424.21,0.00027452,2]
[356438200,1742453438575,-1326.536,0.00027452,16]
[356438201,1742453438586,-477.70216679,0.00027505,2]
[356438202,1742453438596,-500.0,0.00027505,2]
[356438203,1742453438605,-500.0,0.00027505,2]
[356438204,1742453438615,-544.87824483,0.00027505,2]
[356438205,1742453438624,-500.0,0.00027505,2]
[356438206,1742453438634,-500.0,0.00027505,2]
[356438207,1742453438643,-500.0,0.00027505,2]
[356438208,1742453438655,-504.72516744,0.00027505,2]
[356438209,1742453438665,-500.0,0.00027505,2]
[356438210,1742453438676,-500.0,0.00027505,2]
[356438211,1742453438686,-324.25161358,0.00027505,2]
[356438212,1742453438697,-175.74838642,0.00027505,2]
[356438213,1742453438708,-500.0,0.00027505,2]
[356438214,1742453438718,-504.82112973,0.00027505,2]
[356438215,1742453438727,-500.0,0.00027505,2]
[356438216,1742453438737,-500.0,0.00027505,2]
[356438217,1742453438748,-500.0,0.00027505,2]
[356438218,1742453438758,-97.475695,0.00027505,2]
[356438219,1742453438770,-415.27538032,0.00027505,2]
[356438220,1742453438780,-10.18343554,0.00027506,2]
[356438221,1742453440439,-526.4384793,0.00027506,2]
[356438222,1742453440718,-887.58808516,0.00027506,2]
[356438223,1742453440728,-397.51028921,0.00027522,2]
[356438224,1742453440760,-196.45971079,0.00027522,2]
[356438225,1742453440770,-155.25978216,0.00027526,5]
[356438226,1742453440780,-500.0,0.0002756,2]
[356438227,1742453440789,-500.0,0.0002756,2]
[356438228,1742453440801,-264.32,0.0002756,2]
[356438229,1742453440812,-500.0,0.0002756,2]
[356438230,1742453440822,-500.0,0.0002756,2]
[356438231,1742453440831,-434.56,0.0002756,2]
[356438232,1742453440840,-500.0,0.0002756,2]
[356438233,1742453440850,-500.0,0.0002756,2]
[356438234,1742453440860,-101.29892822,0.0002756,2]
[356438235,1742453440874,-398.70107178,0.0002756,2]
[356438236,1742453440885,-1424.21,0.00027561,2]
[356438237,1742453440894,-593.97,0.00027593,2]
[356438238,1742453440904,-500.0,0.00027615,2]
[356438239,1742453440914,-500.0,0.00027615,2]
[356438240,1742453440923,-556.19,0.00027615,2]
[356438241,1742453440932,-500.0,0.00027615,2]
[356438242,1742453440942,-500.0,0.00027615,2]
[356438243,1742453440951,-500.0,0.00027615,2]
[356438244,1742453440961,-264.18,0.00027615,2]
[356438245,1742453440970,-1424.21,0.00027616,2]
[356438246,1742453440980,-593.97,0.00027664,2]
[356438247,1742453440989,-500.0,0.0002767,2]
[356438248,1742453440998,-500.0,0.0002767,2]
[356438249,1742453441007,-500.0,0.0002767,2]
[356438250,1742453441017,-500.0,0.0002767,2]
[356438251,1742453441027,-500.0,0.0002767,2]
[356438252,1742453441036,-1424.21,0.00027671,2]
[356438253,1742453441046,-500.0,0.00027724,2]
[356438254,1742453441055,-500.0,0.00027724,2]
[356438255,1742453441064,-500.0,0.00027724,2]
[356438256,1742453441074,-209.25499667,0.00027724,2]
[356438257,1742453441083,-500.0,0.00027724,2]
[356438258,1742453441093,-649.32277829,0.00027726,2]
[356438261,1742453443191,-774.88722171,0.00027726,2]
[356438262,1742453443202,-593.97,0.00027735,2]
[356438263,1742453443212,-500.0,0.00027779,2]
[356438264,1742453443222,-497.16308013,0.00027779,2]
[356438265,1742453443231,-500.0,0.00027779,2]
[356438266,1742453443241,-500.0,0.00027779,2]
[356438267,1742453443251,-1424.21,0.0002778,2]
[356438268,1742453443261,-151.0,0.0002778,7]
[356438269,1742453443271,-151.0,0.0002778,7]
[356438270,1742453443280,-151.0,0.0002778,7]
[356438271,1742453443290,-151.0,0.0002778,7]
[356438272,1742453443299,-151.0,0.0002778,7]
[356438273,1742453443308,-221.998764,0.0002778,7]
[356438274,1742453443318,-221.998764,0.0002778,7]
[356438275,1742453443331,-151.0,0.0002778,7]
[356438276,1742453443341,-151.0,0.0002778,7]
[356438277,1742453443352,-151.0,0.0002778,7]
[356438278,1742453443364,-151.28024,0.0002778,7]
[356438279,1742453443374,-151.0,0.0002778,7]
[356438280,1742453443386,-151.0,0.0002778,7]
[356438281,1742453443396,-151.0,0.0002778,7]
[356438282,1742453443407,-231.429987,0.0002778,7]
[356438283,1742453443417,-231.429987,0.0002778,7]
[356438284,1742453443427,-298.998852,0.0002778,7]
[356438285,1742453443436,-151.0,0.0002778,7]
[356438286,1742453443447,-151.0,0.0002778,7]
[356438287,1742453443456,-151.0,0.0002778,7]
[356438288,1742453443466,-151.561445,0.0002778,7]
[356438289,1742453443476,-151.0,0.0002778,7]
[356438290,1742453443488,-151.0,0.0002778,7]
[356438291,1742453443498,-593.97,0.00027806,2]
[356438292,1742453443508,-472.50258051,0.00027834,2]
[356438293,1742453443518,-500.0,0.00027834,2]
[356438294,1742453443527,-172.23648166,0.00027834,2]
[356438295,1742453443537,-1424.21,0.00027835,2]
[356438296,1742453443547,-593.97,0.00027877,2]
[356438297,1742453443557,-476.42526708,0.00027889,2]
[356438298,1742453443567,-1424.21,0.0002789,2]
[356438299,1742453443576,-152.076978,0.0002789,7]
[356438300,1742453443586,-151.0,0.0002789,7]
[356438301,1742453443595,-151.0,0.0002789,7]
[356438302,1742453443604,-151.0,0.0002789,7]
[356438303,1742453443614,-151.0,0.0002789,7]
[356438304,1742453443623,-221.998764,0.0002789,7]
[356438305,1742453443634,-221.998764,0.0002789,7]
[356438306,1742453443643,-151.0,0.0002789,7]
[356438307,1742453443653,-151.0,0.0002789,7]
[356438308,1742453443662,-194.847199,0.0002789,7]
[356438309,1742453443672,-151.0,0.0002789,7]
[356438311,1742453443681,-151.0,0.0002789,7]
[356438314,1742453443690,-233.88797,0.0002789,7]
[356438316,1742453443700,-231.429987,0.0002789,7]
[356438319,1742453443709,-231.429987,0.0002789,7]
[356438322,1742453443719,-151.0,0.0002789,7]
[356438324,1742453443729,-151.0,0.0002789,7]
[356438325,1742453443740,-212.506378,0.0002789,7]
[356438326,1742453443750,-151.0,0.0002789,7]
[356438327,1742453443759,-151.0,0.0002789,7]
[356438328,1742453443769,-1424.21,0.00027945,2]
[356438329,1742453443779,-593.97,0.00027948,2]
[356438330,1742453443789,-506.7383811,0.00028,2]
[356438331,1742453443801,-1424.21,0.00028,2]
[356438332,1742453443811,-151.0,0.00028,7]
[356438333,1742453443821,-151.0,0.00028,7]
[356438334,1742453443831,-151.0,0.00028,7]
[356438335,1742453443841,-151.0,0.00028,7]
[356438336,1742453443851,-221.998764,0.00028,7]
[356438337,1742453443860,-221.998764,0.00028,7]
[356438338,1742453443870,-152.488124,0.00028,7]
[356438339,1742453443881,-151.0,0.00028,7]
[356438340,1742453443890,-10067.61,0.00028,3]
[356438341,1742453443900,-151.0,0.00028,7]
[356438342,1742453443910,-151.0,0.00028,7]
[356438343,1742453443919,-231.429987,0.00028,7]
[356438344,1742453443928,-231.429987,0.00028,7]
[356438345,1742453443938,-151.0,0.00028,7]
[356438346,1742453443948,-151.0,0.00028,7]
[356438347,1742453443958,-151.0,0.00028,7]
[356438348,1742453443968,-196.54499,0.00028,7]
[356438349,1742453443978,-593.97,0.00028019,2]
[356438350,1742453443987,-1424.21,0.00028054,2]
[356438351,1742453443997,-163.19339896,0.00028063,2]
[356438352,1742453444006,-593.97,0.0002809,2]
[356438353,1742453444016,-1424.21,0.00028109,2]
[356438354,1742453444025,-151.0,0.00028109,7]
[356438355,1742453444035,-291.851656,0.00028109,7]
[356438356,1742453444045,-151.0,0.00028109,7]
[356438357,1742453444054,-151.0,0.00028109,7]
[356438358,1742453444063,-221.998764,0.00028109,7]
[356438359,1742453444074,-221.998764,0.00028109,7]
[356438360,1742453444084,-151.0,0.00028109,7]
[356438361,1742453444094,-151.0,0.00028109,7]
[356438362,1742453444103,-151.0,0.00028109,7]
[356438363,1742453444113,-231.429987,0.00028109,7]
[356438364,1742453444123,-231.429987,0.00028109,7]
[356438365,1742453444133,-151.0,0.00028109,7]
[356438366,1742453444142,-151.0,0.00028109,7]
[356438367,1742453444152,-151.0,0.00028109,7]
[356438368,1742453444162,-593.97,0.00028161,2]
[356438369,1742453444171,-1058.19922056,0.00028163,2]
[356438370,1742453444181,-1424.21,0.00028164,2]
[356438371,1742453444191,-478.3287888,0.00028207,4]
[356438372,1742453444200,-1424.21,0.00028219,2]
[356438373,1742453444210,-151.0,0.00028219,7]
[356438374,1742453444219,-151.0,0.00028219,7]
[356438375,1742453444229,-151.0,0.00028219,7]
[356438376,1742453444239,-221.998764,0.00028219,7]
[356438377,1742453444248,-221.998764,0.00028219,7]
[356438378,1742453444257,-151.0,0.00028219,7]
[356438379,1742453444266,-151.0,0.00028219,7]
[356438380,1742453444276,-151.0,0.00028219,7]
[356438381,1742453444285,-231.429987,0.00028219,7]
[356438382,1742453444295,-231.429987,0.00028219,7]
[356438383,1742453444305,-151.0,0.00028219,7]
[356438384,1742453444314,-151.0,0.00028219,7]
[356438385,1742453444323,-151.0,0.00028219,7]
[356438386,1742453444333,-593.97,0.00028232,2]
[356438387,1742453444343,-1424.21,0.00028273,2]
[356438388,1742453444352,-593.97,0.00028303,2]
[356438389,1742453444362,-1424.21,0.00028328,2]
[356438390,1742453444372,-151.0,0.00028328,7]
[356438391,1742453444382,-151.0,0.00028328,7]
[356438392,1742453444392,-151.0,0.00028328,7]
[356438393,1742453444401,-221.998764,0.00028328,7]
[356438394,1742453444411,-221.998764,0.00028328,7]
[356438395,1742453444420,-151.0,0.00028328,7]
[356438396,1742453444430,-151.0,0.00028328,7]
[356438397,1742453444439,-151.0,0.00028328,7]
[356438398,1742453444449,-231.429987,0.00028328,7]
[356438399,1742453444459,-231.429987,0.00028328,7]
[356438400,1742453444468,-151.0,0.00028328,7]
[356438401,1742453444478,-151.0,0.00028328,7]
[356438402,1742453444488,-151.0,0.00028328,7]
[356438403,1742453444497,-1424.21,0.00028383,2]
[356438404,1742453444507,-163.19339892,0.00028397,2]
[356438405,1742453444516,-349.98369066,0.000284,2]
[356438406,1742453444526,-1424.21,0.00028438,2]
[356438407,1742453444535,-151.0,0.00028438,7]
[356438408,1742453444544,-151.0,0.00028438,7]
[356438409,1742453444553,-261.034319,0.00028438,7]